bitfinex/quotes_SOLUSD_20250902
["timestamp","ask_amount","ask_price","bid_price","bid_amount"]
[1756855263170,34.04860168,209.17,209.16,0.1]
[1756855263492,8.04860168,209.17,209.16,0.1]
[1756855263663,34.04860168,209.17,209.16,0.1]
[1756855263865,7.62211697,209.17,209.16,0.1]
[1756855264482,34.04860168,209.17,209.16,0.1]
[1756855264682,7.62211697,209.17,209.16,0.1]
[1756855264881,33.62211697,209.17,209.16,0.1]
[1756855265086,7.62211697,209.17,209.16,0.76]
[1756855265480,2.84131667,209.17,209.16,0.76]
[1756855266088,7.62211697,209.17,209.16,0.76]
[1756855267577,7.62211697,209.17,209.16,0.1]
[1756855271594,33.62211697,209.17,209.16,0.1]
[1756855271797,7.62211697,209.17,209.16,0.1]
[1756855274283,7.68211697,209.17,209.16,0.1]
[1756855274798,33.68211697,209.17,209.16,0.1]
[1756855275008,45.47386836,209.17,209.16,0.1]
[1756855275203,40.63306806,209.16,209.15,0.1]
[1756855275495,40.63306806,209.16,209.14,0.03]
[1756855275714,2.84131667,209.15,209.14,0.03]
[1756855276505,8.27257414,209.15,209.13,0.1]
[1756855276688,3.26780138,209.14,209.13,0.1]
[1756855277712,34.04928746,209.14,209.13,0.1]
[1756855278020,34.04928746,209.14,209.12,0.03]
[1756855278021,29.26780138,209.13,209.12,0.03]
[1756855278200,28.84131667,209.1,209.07,0.66]
[1756855278387,2.84131667,209.08,209.07,0.66]
[1756855279513,26.0,209.06,209.02,3.50129871]
[1756855279715,26.0,209.06,209.05,0.66]
[1756855280086,26.0,209.09,209.05,0.66]
[1756855280290,26.0,209.09,209.06,0.66]
[1756855280491,0.42648471,209.05,209.01,0.1]
[1756855280750,26.0,209.02,209.01,0.1]
[1756855280898,26.0,209.02,208.99,0.1]
[1756855280899,2.84131667,209.0,208.99,0.1]
[1756855281718,4.78468899,209.0,208.99,0.1]
[1756855281913,30.78468899,209.0,208.99,0.1]
[1756855282492,26.0,209.0,208.99,0.76]
[1756855282816,28.84131667,209.0,208.99,0.76]
[1756855283215,2.84131667,209.0,208.99,0.76]
[1756855284115,2.84131667,209.0,208.99,0.1]
[1756855284296,28.84131667,209.0,208.99,0.1]
[1756855285229,28.84131667,209.0,208.99,0.76]
[1756855285430,7.62600566,209.0,208.88,0.42648471]
[1756855285622,7.62600566,209.0,208.95,0.66]
[1756855285623,26.0,208.98,208.95,0.66]
[1756855285832,26.0,208.98,208.96,0.66]
[1756855286127,4.78537589,208.97,208.88,18.38281827]
[1756855286329,26.0,208.94,208.88,18.38281827]
[1756855286512,26.0,208.94,208.87,13.59559401]
[1756855286708,26.0,208.94,208.88,0.66]
[1756855286907,2.84131667,208.92,208.88,0.66]
[1756855288508,8.53677529,208.96,208.88,0.66]
[1756855288509,2.84131667,208.89,208.88,0.66]
[1756855288707,2.84131667,208.9,208.88,5.44743351]
[1756855288906,2.84131667,208.91,208.89,0.66]
[1756855289316,2.84131667,208.9,208.89,0.66]
[1756855290031,26.0,208.94,208.89,0.66]
[1756855290221,2.84131667,208.9,208.89,0.66]
[1756855290736,2.84131667,208.9,208.89,5.44717882]
[1756855290915,26.0,208.94,208.89,5.44717882]
[1756855291119,2.84131667,208.9,208.89,0.66]
[1756855291629,2.84131667,208.9,208.89,5.44720857]
[1756855292906,2.84131667,208.9,208.89,0.66]
[1756855293529,13.59559401,208.95,208.89,5.44720857]
[1756855293829,13.59559401,208.95,208.9,14.25559401]
[1756855293830,2.84131667,208.95,208.9,14.25559401]
[1756855294018,2.84131667,208.95,208.91,0.66]
[1756855294215,28.84131667,208.96,208.91,0.66]
[1756855294413,2.84131667,208.95,208.91,0.66]
[1756855294623,2.84131667,208.95,208.91,5.44673088]
[1756855294822,2.84131667,208.96,208.92,0.66]
[1756855295826,26.0,208.97,208.93,4.78629205]
[1756855296033,2.84131667,208.99,208.94,0.66]
[1756855297228,2.84131667,209.0,208.95,13.59559401]
[1756855297428,2.84131667,209.01,208.96,0.66]
[1756855297620,2.84131667,209.01,208.97,38.96]
[1756855297820,2.84131667,209.02,208.98,5.4451469]
[1756855298028,2.84131667,209.02,208.99,0.66]
[1756855298538,2.84131667,209.02,209.0,0.66]
[1756855298740,13.59559401,209.06,209.0,0.66]
[1756855298933,2.84131667,209.05,209.0,0.66]
[1756855299619,26.0,209.06,209.0,0.66]
[1756855299823,2.84131667,209.05,209.01,4.78446007]
[1756855300028,2.84131667,209.04,209.02,0.66]
[1756855300232,26.0,209.06,209.02,0.66]
[1756855300428,2.84131667,209.04,209.03,0.66]
[1756855301641,4.4432119,209.04,209.03,0.66]
[1756855301836,4.4432119,209.04,209.01,0.71]
[1756855302011,4.4432119,209.04,209.02,0.71]
[1756855302216,5.0932119,209.03,208.96,0.71]
[1756855302441,4.4432119,208.99,208.96,0.71]
[1756855302639,4.4432119,208.97,208.94,38.94]
[1756855302825,4.4432119,208.97,208.89,4.4432119]
[1756855302826,4.4432119,208.97,208.95,0.71]
[1756855303233,4.4432119,208.96,208.94,38.94]
[1756855303536,4.4432119,208.95,208.91,0.71]
[1756855303730,4.4432119,208.93,208.91,38.94]
[1756855304038,4.4432119,208.94,208.91,43.72670068]
[1756855304247,4.4432119,208.95,208.92,0.71]
[1756855304443,26.0,209.0,208.93,0.71]
[1756855304636,4.4432119,208.98,208.93,0.71]
[1756855304950,4.4432119,209.0,208.94,13.59559401]
[1756855305248,4.4432119,209.0,208.95,0.71]
[1756855305546,4.4432119,208.99,208.96,0.71]
[1756855305719,4.4432119,208.99,208.97,39.65]
[1756855306445,4.4432119,208.99,208.98,0.71]
[1756855306748,4.4432119,208.99,208.95,38.94]
[1756855306950,4.4432119,208.98,208.96,0.71]
[1756855307950,31.43401652,209.03,208.96,0.71]
[1756855308247,4.4432119,208.98,208.96,0.71]
[1756855308747,4.4432119,208.98,208.96,5.4954544]
[1756855308950,4.4432119,208.99,208.97,0.71]
[1756855309749,26.0,209.03,208.98,0.71]
[1756855309939,4.4432119,209.0,208.99,0.71]
[1756855310767,4.4432119,209.01,208.99,0.71]
[1756855310935,4.4432119,209.01,208.97,5.49531118]
[1756855311247,26.0,209.03,208.96,38.95]
[1756855311248,4.4432119,208.98,208.96,38.95]
[1756855311436,4.4432119,208.97,208.96,38.95]
[1756855313750,4.4432119,208.97,208.96,39.66]
[1756855313937,4.4432119,208.97,208.96,38.95]
[1756855314444,0.65,209.01,208.96,38.95]
[1756855314654,4.4432119,208.98,208.96,38.95]
[1756855315033,4.4432119,208.98,208.96,39.66]
[1756855315935,4.4432119,209.01,208.97,0.71]
[1756855316133,4.4432119,209.01,208.98,0.71]
[1756855319141,4.4432119,208.99,208.96,0.03]
[1756855319343,26.0,209.0,208.97,39.61]
[1756855319546,30.4432119,209.01,208.98,0.71]
[1756855320269,4.4432119,209.01,208.98,0.71]
[1756855320437,4.4432119,209.03,208.99,0.71]
[1756855320861,4.4432119,209.03,209.0,0.71]
[1756855321045,4.4432119,209.03,209.01,38.9]
[1756855321459,5.43342339,209.06,209.01,38.9]
[1756855321639,4.4432119,209.02,209.01,38.9]
[1756855321955,4.4432119,209.02,208.99,0.71]
[1756855322154,4.4432119,209.02,208.98,79.7]
[1756855322155,4.4432119,209.02,209.0,38.9]
[1756855322750,4.4432119,209.03,209.0,39.61]
[1756855323059,4.4432119,209.02,209.0,39.61]
[1756855323656,4.4432119,209.01,209.0,38.9]
[1756855324346,4.4432119,209.01,208.98,80.41]
[1756855324545,4.4432119,209.0,208.99,38.9]
[1756855325141,4.4432119,209.01,208.99,38.9]
[1756855325644,4.4432119,209.01,208.96,79.73]
[1756855325645,0.65,209.01,208.96,79.73]
[1756855325841,4.4432119,208.98,208.96,80.44]
[1756855326049,4.4432119,208.98,208.97,38.88]
[1756855327871,35.87840816,208.98,208.96,0.03]
[1756855328070,0.65,208.97,208.96,0.03]
[1756855329649,35.22840816,208.98,208.96,0.03]
[1756855330246,4.4432119,208.97,208.96,0.03]
[1756855331056,5.0932119,208.97,208.96,0.03]
[1756855331949,9.87858779,208.97,208.96,0.03]
[1756855332260,26.0,208.94,208.93,0.03]
[1756855332452,30.4432119,208.94,208.93,0.03]
[1756855332651,31.0932119,208.94,208.93,0.03]
[1756855333443,35.87927488,208.94,208.93,0.03]
[1756855333946,35.87927488,208.94,208.9,38.88]
[1756855334142,4.4432119,208.91,208.9,38.88]
[1756855336089,38.86,209.0,208.9,39.58]
[1756855336090,4.4432119,208.93,208.9,39.58]
[1756855336367,4.4432119,208.92,208.91,0.7]
[1756855336974,4.4432119,208.92,208.91,5.48675027]
[1756855341165,4.4432119,208.92,208.91,0.7]
[1756855342771,4.78539538,208.97,208.91,0.7]
[1756855343084,4.4432119,208.92,208.91,0.7]
[1756855343978,4.4432119,208.92,208.89,14.02207872]
[1756855344165,0.65,208.96,208.9,39.54]
[1756855344893,0.65,209.01,208.91,14.72207872]
[1756855345067,5.43469699,209.0,208.92,0.7]
[1756855345269,31.43469699,209.0,208.93,38.84]
[1756855345477,0.65,208.99,208.94,38.84]
[1756855345680,0.65,208.98,208.94,38.84]
[1756855346483,4.4432119,208.95,208.94,38.84]
[1756855347591,9.87913829,208.95,208.91,0.03]
[1756855347767,5.43592639,208.95,208.92,38.84]
[1756855348168,0.06,208.96,208.92,38.84]
[1756855348557,0.06,208.96,208.92,39.54]
[1756855348964,4.4432119,208.93,208.92,39.54]
[1756855349967,4.4432119,208.93,208.92,38.84]
[1756855350282,4.4432119,208.93,208.91,38.87]
[1756855351692,4.4432119,208.92,208.91,38.87]
[1756855353078,4.4432119,208.92,208.91,0.03]
[1756855355682,5.43629205,208.93,208.91,0.03]
[1756855355893,4.4432119,208.92,208.91,0.03]
[1756855357767,0.71,208.96,208.91,0.03]
[1756855357768,0.06,208.96,208.92,13.59559401]
[1756855357974,4.5032119,208.96,208.93,0.7]
[1756855358177,4.5032119,208.96,208.94,38.82]
[1756855358178,0.06,208.96,208.94,38.82]
[1756855358391,4.4432119,208.95,208.94,38.82]
[1756855358889,4.4432119,208.95,208.94,39.52]
[1756855359084,4.4432119,208.95,208.94,38.82]
[1756855359268,4.4432119,208.95,208.94,38.8]
[1756855359890,4.4432119,208.95,208.94,39.5]
[1756855360891,4.5032119,208.96,208.94,39.5]
[1756855361088,4.5032119,208.96,208.95,0.7]
[1756855361289,0.06,208.96,208.95,0.7]
[1756855362699,4.5032119,208.96,208.95,0.7]
[1756855362875,4.5032119,208.96,208.94,38.8]
[1756855363081,4.5032119,208.96,208.94,39.51]
[1756855363082,4.4432119,208.95,208.94,39.51]
[1756855363477,2.84630258,208.95,208.94,39.51]
[1756855364191,0.06,208.96,208.94,44.29599172]
[1756855364391,0.06,208.96,208.94,43.58599172]
[1756855364701,0.06,208.96,208.95,0.71]
[1756855364902,2.90630258,208.96,208.95,0.71]
[1756855366001,2.90630258,208.96,208.95,38.78]
[1756855369702,3.55630258,208.96,208.91,0.03]
[1756855369899,2.84630258,208.92,208.91,0.03]
[1756855370205,2.84630258,208.92,208.91,38.81]
[1756855370611,2.84630258,208.92,208.91,39.52]
[1756855373317,0.06,208.96,208.91,39.52]
[1756855373497,2.84630258,208.92,208.91,38.81]
[1756855374014,2.84630258,208.92,208.91,39.52]
[1756855377605,4.78592452,208.95,208.91,39.52]
[1756855377921,2.84630258,208.92,208.91,39.52]
[1756855378088,2.84630258,208.92,208.91,38.81]
[1756855378490,7.63282373,208.92,208.91,0.03]
[1756855378684,7.63282373,208.92,208.91,38.77]
[1756855379914,2.84630258,208.92,208.91,38.77]
[1756855380102,2.84630258,208.92,208.91,39.48]
[1756855380629,0.06,208.96,208.91,39.48]
[1756855380801,2.84630258,208.93,208.92,0.71]
[1756855381318,2.84630258,208.93,208.92,4.20995725]
[1756855382131,2.84630258,208.93,208.92,3.49995725]
[1756855383794,4.78584486,208.95,208.92,3.49995725]
[1756855383998,4.78584486,208.95,208.93,3.49995725]
[1756855384199,4.78584486,208.95,208.91,0.03]
[1756855384497,4.78584486,208.95,208.92,3.53630709]
[1756855384723,4.78584486,208.95,208.93,3.53630709]
[1756855385007,4.78584486,208.95,208.91,0.03]
[1756855385300,4.78584486,208.95,208.92,3.53630791]
[1756855385508,26.06,208.96,208.93,3.53630791]
[1756855385714,30.84564462,208.96,208.92,0.71]
[1756855385893,30.84564462,208.96,208.93,3.53610797]
[1756855386097,30.84564462,208.96,208.91,0.03]
[1756855386307,0.65,208.95,208.92,3.5360188]
[1756855386519,0.65,208.95,208.93,3.5360188]
[1756855386723,30.84564462,208.96,208.91,0.03]
[1756855386912,30.84564462,208.96,208.92,3.5361223]
[1756855387111,31.49564462,208.96,208.93,3.5361223]
[1756855387421,0.65,208.95,208.91,0.03]
[1756855387728,0.65,208.95,208.92,3.53555873]
[1756855387905,0.65,208.95,208.93,3.53555873]
[1756855388226,30.84564462,208.96,208.91,0.03]
[1756855388416,30.84564462,208.96,208.92,3.53548112]
[1756855388719,31.49564462,208.96,208.93,3.53548112]
[1756855388898,2.84630258,208.93,208.91,0.03]
[1756855389102,2.84630258,208.93,208.92,3.53523396]
[1756855389325,3.49630258,208.93,208.92,3.53523396]
[1756855389523,3.49630258,208.93,208.91,0.03]
[1756855389715,0.65,208.92,208.91,0.03]
[1756855389913,3.49630258,208.93,208.91,0.03]
[1756855390919,2.84630258,208.92,208.91,0.03]
[1756855392810,7.63282373,208.92,208.91,0.03]
[1756855393028,2.84630258,208.92,208.91,0.03]
[1756855393812,2.84630258,208.92,208.91,0.69]
[1756855394029,7.63282373,208.92,208.91,0.03]
[1756855394238,2.84630258,208.92,208.91,0.03]
[1756855395234,7.63282373,208.92,208.91,0.03]
[1756855401542,2.84630258,208.92,208.91,0.69]
[1756855402442,2.84630258,208.92,208.91,0.03]
[1756855402941,2.84630258,208.92,208.91,0.69]
[1756855405740,0.06,208.93,208.92,13.59559401]
[1756855405940,0.06,208.96,208.93,0.14216157]
[1756855406144,2.90630258,208.96,208.95,14.02207872]
[1756855406342,2.90630258,208.96,208.91,0.03]
[1756855406343,0.71,208.95,208.91,0.03]
[1756855406527,2.84630258,208.92,208.91,0.03]
[1756855409627,2.84630258,208.92,208.91,0.69]
[1756855410237,2.84630258,208.92,208.91,19.07234428]
[1756855411253,2.84630258,208.92,208.91,0.69]
[1756855411445,2.84630258,208.92,208.91,39.35]
[1756855411841,2.84630258,208.92,208.91,39.33]
[1756855413241,2.84630258,208.92,208.91,0.69]
[1756855413448,2.84630258,208.92,208.91,38.67]
[1756855414565,2.84630258,208.92,208.91,39.33]
[1756855417270,2.84630258,208.92,208.91,38.67]
[1756855419384,2.84630258,208.92,208.91,38.65]
[1756855420982,2.84630258,208.92,208.91,39.31]
[1756855422867,2.84630258,208.92,208.91,119.01]
[1756855423474,4.44862353,208.92,208.91,119.01]
[1756855423683,0.06,208.93,208.91,44.09675027]
[1756855423875,0.06,208.93,208.92,14.74207872]
[1756855424270,0.06,208.93,208.92,19.52859987]
[1756855424675,0.06,208.93,208.92,23.9772234]
[1756855425490,0.01222662,208.93,208.92,23.9772234]
[1756855425788,0.01222662,208.93,208.92,28.42584693]
[1756855426384,0.01222662,208.93,208.92,23.9772234]
[1756855426576,0.01222662,208.93,208.92,28.42584693]
[1756855426776,0.01222662,208.93,208.92,27.85503891]
[1756855426976,0.01222662,208.93,208.92,32.30366244]
[1756855428476,0.01222662,208.93,208.92,27.85503891]
[1756855428675,0.01222662,208.93,208.92,32.30366244]
[1756855428879,0.06,208.98,208.96,13.59559401]
[1756855429202,0.06,208.98,208.97,52.62207872]
[1756855429363,0.06,208.98,208.97,53.34207872]
[1756855429764,0.06,208.98,208.97,55.25930258]
[1756855430191,0.06,208.98,208.97,59.70792611]
[1756855430393,0.06,208.98,208.97,64.493302]
[1756855431167,0.06,208.98,208.97,60.04467847]
[1756855431492,0.06,208.98,208.97,64.493302]
[1756855431885,1e-08,208.98,208.97,64.493302]
[1756855432082,0.7,209.1,209.0,39.59559401]
[1756855432283,4.44862353,209.06,209.0,78.17559401]
[1756855432490,1e-08,209.01,209.0,108.55539124]
[1756855432665,0.2,209.16,209.04,26.0]
[1756855432870,0.2,209.16,209.01,14.02207872]
[1756855432871,0.2,209.16,209.15,18.47070225]
[1756855433085,0.2,209.16,209.15,83.05070225]
[1756855433292,0.2,209.16,209.15,85.68608999]
[1756855433481,0.2,209.16,209.15,89.21613113]
[1756855434290,0.2,209.16,209.15,84.7675076]
[1756855434485,0.2,209.16,209.15,89.54876507]
[1756855434998,0.2,209.16,209.15,93.9973886]
[1756855436177,0.2,209.16,209.15,89.54876507]
[1756855436383,0.2,209.16,209.15,93.9973886]
[1756855437895,0.2,209.16,209.15,173.6973886]
[1756855438096,0.06,209.19,209.16,14.02207872]
[1756855438311,0.06,209.19,209.16,22.72074339]
[1756855439090,0.06,209.19,209.16,22.6971659]
[1756855440298,1e-08,209.17,209.16,22.6971659]
[1756855440598,1e-08,209.17,209.16,24.61237022]
[1756855441305,1e-08,209.17,209.16,29.39339909]
[1756855443496,0.06,209.22,209.19,93.66207871]
[1756855443700,0.06,209.22,209.19,135.68854236]
[1756855443906,1e-08,209.2,209.19,145.53748425]
[1756855444097,1e-08,209.2,209.19,147.4525052]
[1756855444604,1e-08,209.2,209.19,142.28388167]
[1756855444809,1e-08,209.2,209.19,143.00388167]
[1756855445320,1e-08,209.2,209.19,147.4525052]
[1756855445786,1e-08,209.2,209.19,152.23284842]
[1756855446229,0.06,209.24,209.22,13.59559401]
[1756855446400,1e-08,209.24,209.23,60.4771659]
[1756855446602,1e-08,209.25,209.24,40.02207872]
[1756855446809,0.06,209.29,209.24,122.33716589]
[1756855447013,0.06,209.29,209.28,18.18637911]
[1756855447226,0.06,209.29,209.28,60.19284276]
[1756855447529,0.06,209.29,209.28,57.65859861]
[1756855447906,0.06,209.29,209.28,63.15688607]
[1756855448107,1e-08,209.29,209.28,147.52983273]
[1756855449836,1e-08,209.3,209.29,38.80013787]
[1756855450006,1e-08,209.3,209.29,127.11522504]
[1756855450633,1e-08,209.3,209.29,127.0748464]
[1756855450836,1e-08,209.3,209.29,101.90622287]
[1756855451023,1e-08,209.3,209.29,166.38622287]
[1756855451223,1e-08,209.3,209.29,127.90622287]
[1756855451421,1e-08,209.3,209.29,166.38622287]
[1756855451818,0.71000001,209.3,209.29,101.47872404]
[1756855452022,0.71000001,209.3,209.29,140.24304718]
[1756855452330,0.71000001,209.3,209.29,140.10088561]
[1756855452522,0.71000001,209.3,209.29,140.24304718]
[1756855452722,0.71000001,209.3,209.29,140.38520875]
[1756855452917,5.15862354,209.3,209.29,96.70066489]
[1756855453241,5.15862354,209.3,209.29,118.11999999]
[1756855453912,5.15862354,209.3,209.29,38.48]
[1756855455434,5.15862354,209.3,209.22,79.63999999]
[1756855455435,14.38507793,209.3,209.22,79.63999999]
[1756855455636,0.71,209.29,209.23,38.48]
[1756855455832,0.71,209.28,209.23,38.48]
[1756855456138,0.71,209.27,209.23,38.48]
[1756855456336,0.71,209.26,209.23,38.48]
[1756855456540,0.71,209.25,209.23,38.48]
[1756855456724,9.2264544,209.3,209.23,38.48]
[1756855456725,0.71,209.24,209.23,38.48]
[1756855457030,4.44862353,209.24,209.23,41.9501031]
[1756855457232,4.44862353,209.25,209.23,46.72946651]
[1756855457435,4.44862353,209.25,209.23,43.25936341]
[1756855457638,4.44862353,209.25,209.24,3.47079936]
[1756855457816,5.15862353,209.25,209.24,3.47079936]
[1756855459534,4.44862353,209.25,209.24,3.47079936]
[1756855460824,4.44862353,209.26,209.24,3.47079936]
[1756855461039,5.15862353,209.26,209.25,38.46]
[1756855461244,5.15862353,209.26,209.25,41.93079936]
[1756855461429,5.15862353,209.26,209.25,121.57079935]
[1756855463858,1e-08,209.3,209.25,126.34977187]
[1756855464146,1e-08,209.3,209.22,4.44862353]
[1756855464147,0.71,209.29,209.26,41.91079936]
[1756855464332,0.71,209.28,209.27,3.47079936]
[1756855465146,5.48828746,209.28,209.27,3.47079936]
[1756855465353,9.93691099,209.28,209.27,3.47079936]
[1756855465844,9.93691099,209.28,209.18,79.63999999]
[1756855466146,26.0,209.25,209.19,41.92691126]
[1756855466444,0.71,209.24,209.2,41.92691126]
[1756855466651,0.71,209.23,209.21,3.48691126]
[1756855466828,0.71,209.23,209.22,38.44]
[1756855467157,0.71,209.28,209.22,43.87958793]
[1756855467446,26.71,209.28,209.22,43.87958793]
[1756855467626,4.44862353,209.27,209.22,43.87958793]
[1756855467826,4.44862353,209.26,209.22,43.87958793]
[1756855468552,4.44862353,209.26,209.22,43.21958793]
[1756855468735,4.44862353,209.26,209.23,0.66]
[1756855468940,4.44862353,209.26,209.24,38.44]
[1756855469334,4.44862353,209.25,209.24,38.44]
[1756855470452,0.71,209.28,209.24,38.44]
[1756855470666,4.44862353,209.25,209.24,38.44]
[1756855471262,4.44862353,209.25,209.23,0.03]
[1756855471458,5.15862353,209.24,209.23,0.03]
[1756855471760,5.15862353,209.24,209.23,38.47]
[1756855476574,4.44862353,209.24,209.23,38.47]
[1756855481272,5.15862353,209.24,209.23,38.47]
[1756855481771,4.44862353,209.24,209.23,38.47]
[1756855482163,5.12862353,209.24,209.23,38.47]
[1756855482453,9.90782444,209.24,209.23,0.03]
[1756855482656,35.90782444,209.24,209.23,0.03]
[1756855482863,35.90782444,209.24,209.21,38.4]
[1756855482864,26.0,209.22,209.21,38.4]
[1756855483052,31.12862353,209.22,209.2,0.03]
[1756855483255,5.12862353,209.21,209.2,0.03]
[1756855484475,5.12862353,209.21,209.18,38.43]
[1756855484476,26.0,209.19,209.18,0.03]
[1756855484658,26.0,209.19,209.16,0.03]
[1756855484659,26.0,209.18,209.16,0.03]
[1756855484862,26.0,209.15,209.14,38.4]
[1756855485174,26.0,209.15,209.13,0.03]
[1756855485175,5.12862353,209.15,209.13,0.03]
[1756855485484,29.52291006,209.14,209.13,0.03]
[1756855485781,28.84291006,209.12,209.1,38.4]
[1756855485954,3.52291006,209.11,209.1,38.4]
[1756855486152,26.0,209.09,209.01,0.78]
[1756855486355,2.84291006,209.02,209.01,0.78]
[1756855486571,2.84291006,209.02,209.01,39.18]
[1756855488271,2.84291006,209.02,209.01,38.5]
[1756855488879,2.84291006,209.02,209.01,39.18]
[1756855490083,2.84291006,209.02,209.01,38.5]
[1756855491470,14.2145503,209.02,209.01,38.5]
[1756855492079,14.8945503,209.02,209.01,38.5]
[1756855492785,14.2145503,209.02,209.01,38.5]
[1756855492985,0.68,209.04,209.01,38.5]
[1756855493195,14.2145503,209.02,209.01,38.5]
[1756855493963,2.84291006,209.02,209.01,39.18]
[1756855495182,2.84291006,209.02,209.01,38.5]
[1756855495778,2.84291006,209.02,209.01,39.18]
[1756855497186,2.84291006,209.02,209.01,0.1]
[1756855497486,2.84291006,209.02,209.01,38.5]
[1756855503557,2.84291006,209.02,209.01,39.18]
[1756855503976,2.84291006,209.02,209.01,38.5]
[1756855504684,2.84291006,209.02,209.01,39.18]
[1756855505075,2.84291006,209.02,209.01,38.5]
[1756855505971,32.36582012,209.02,208.93,0.68]
[1756855506175,32.36582012,209.02,208.94,38.38]
[1756855506176,38.05164024,209.02,208.94,38.38]
[1756855506379,26.0,209.0,208.94,38.38]
[1756855506583,26.0,209.0,208.95,0.68]
[1756855506773,30.78469052,209.0,208.95,0.68]
[1756855507080,26.0,208.99,208.96,0.68]
[1756855507669,2.84291006,208.97,208.96,0.68]
[1756855507991,2.84291006,208.97,208.94,39.06]
[1756855508169,2.84291006,208.95,208.94,39.06]
[1756855510876,2.84291006,208.95,208.94,38.38]
[1756855511089,2.84291006,208.96,208.94,43.84606165]
[1756855511299,2.84291006,208.95,208.94,38.38]
[1756855511809,2.84291006,208.95,208.94,118.76]
[1756855512177,2.84291006,208.95,208.94,80.38]
[1756855512382,2.84291006,208.95,208.94,118.76]
[1756855513109,2.84291006,208.95,208.94,118.08]
[1756855513398,2.84291006,208.95,208.94,38.38]
[1756855516180,2.84291006,208.95,208.92,38.39]
[1756855516403,2.84291006,208.93,208.92,38.39]
[1756855517268,2.84291006,208.93,208.92,39.07]
[1756855520189,2.84291006,208.93,208.92,38.39]
[1756855520703,2.84291006,208.93,208.92,39.07]
[1756855522210,2.84291006,208.93,208.92,38.39]
[1756855523010,4.78575945,208.96,208.92,38.39]
[1756855523011,26.0,208.95,208.92,38.39]
[1756855523190,2.84291006,208.93,208.92,39.07]
[1756855529119,2.84291006,208.93,208.92,38.39]
[1756855529313,2.84291006,208.93,208.92,39.07]
[1756855529823,2.84291006,208.98,208.92,43.85652115]
[1756855530031,2.84291006,208.98,208.93,0.68]
[1756855530199,2.84291006,208.97,208.94,4.78606298]
[1756855530399,2.84291006,208.97,208.95,39.02]
[1756855530598,2.84291006,208.97,208.96,0.68]
[1756855533209,26.0,209.0,208.96,0.68]
[1756855533411,2.84291006,208.98,208.96,0.68]
[1756855534507,2.84291006,208.97,208.95,39.02]
[1756855534714,2.84291006,208.97,208.96,0.68]
[1756855537002,2.84291006,208.97,208.96,0.71]
[1756855537203,2.84291006,208.97,208.96,0.03]
[1756855537204,3.53291006,208.97,208.96,0.03]
[1756855537503,2.84291006,208.97,208.96,0.03]
[1756855546617,2.84291006,208.97,208.96,0.71]
[1756855546809,2.84291006,208.97,208.96,0.03]
[1756855547510,4.44677,208.97,208.96,0.03]
[1756855548337,31.10677,208.97,208.96,0.03]
[1756855548731,35.89214589,208.97,208.96,0.03]
[1756855549809,37.81084117,208.97,208.96,0.03]
[1756855553143,33.36407117,208.97,208.96,0.03]
[1756855553312,37.81084117,208.97,208.96,0.03]
[1756855555044,4.44677,208.97,208.96,0.03]
[1756855555611,30.44677,208.97,208.96,0.03]
[1756855555818,35.23214589,208.97,208.96,0.03]
[1756855556326,35.89214589,208.97,208.96,0.03]
[1756855556733,35.23214589,208.97,208.96,0.03]
[1756855559024,1.91832722,209.0,208.96,0.71]
[1756855559222,4.44677,208.98,208.97,0.68]
[1756855559542,30.44677,208.98,208.97,0.68]
[1756855559922,9.2319169,208.98,208.96,0.03]